bitfinex-derivatives/quotes_ETHF0:USTF0_20250616
["timestamp","ask_amount","ask_price","bid_price","bid_amount"]
[1750103414897,37.04405383,2655.6,2655.3,0.06737406]
[1750103415092,37.04405383,2655.6,2655.5,0.7528]
[1750103415797,37.04405383,2655.6,2655.4,0.75282]
[1750103416289,1.2813,2655.5,2655.3,0.82021406]
[1750103416491,4.4891,2655.5,2655.3,0.82021406]
[1750103417102,4.4891,2655.5,2655.4,0.75284]
[1750103417290,4.4891,2655.5,2655.3,0.82022406]
[1750103417589,5.24192,2655.5,2655.3,0.82022406]
[1750103417897,4.4891,2655.5,2655.3,0.82022406]
[1750103418099,5.24193,2655.5,2655.3,0.06737406]
[1750103418389,0.75284,2655.4,2655.3,0.06737406]
[1750103418590,4.4891,2655.5,2655.3,0.82023406]
[1750103418901,0.75284,2655.4,2655.3,0.06737406]
[1750103419096,2.02794,2655.4,2655.3,0.06737406]
[1750103419897,2.02794,2655.4,2655.3,0.82024406]
[1750103420090,1.2751,2655.4,2655.3,0.82024406]
[1750103420294,2.02794,2655.4,2655.3,0.06737406]
[1750103420693,31.67494,2655.4,2655.3,0.06737406]
[1750103422190,32.50394,2655.4,2655.3,0.06737406]
[1750103424002,9.06494,2655.4,2655.3,0.06737406]
[1750103424206,32.50494,2655.4,2655.3,0.06737406]
[1750103425104,0.75287,2655.3,2655.2,0.00564919]
[1750103425303,9.50192383,2655.3,2655.2,0.00564919]
[1750103425497,50.30192383,2655.3,2655.2,0.00564919]
[1750103427204,51.31160397,2655.3,2655.2,0.00564919]
[1750103427503,51.31159971,2655.3,2655.2,0.00564919]
[1750103429102,1.88237,2655.1,2654.5,0.75306]
[1750103429304,0.75305,2654.7,2654.6,0.75304]
[1750103429505,23.438,2654.7,2654.6,0.75304]
[1750103429699,24.19104,2654.7,2654.6,0.75304]
[1750103431306,0.75304,2654.7,2654.6,0.75304]
[1750103431502,0.00564919,2654.9,2654.8,0.75301]
[1750103431702,3.2078,2655.3,2654.9,1.88243]
[1750103432003,2.99810715,2656.0,2655.1,10.60585383]
[1750103432004,3.2078,2656.0,2655.1,10.60585383]
[1750103432210,3.2078,2656.0,2655.9,0.7527]
[1750103432398,3.2078,2656.0,2655.8,0.75271]
[1750103432708,0.75275,2655.7,2655.6,0.75276]
[1750103432907,24.19075,2655.7,2655.6,0.75276]
[1750103433113,0.75281,2655.5,2655.4,3.96063]
[1750103433699,0.75281,2655.5,2655.4,3.96064]
[1750103434201,0.75281,2655.5,2655.4,3.2078]
[1750103434405,0.75284,2655.4,2655.3,0.82022406]
[1750103434601,23.438,2655.4,2655.3,0.75285]
[1750103434906,24.19084,2655.4,2655.3,0.75285]
[1750103435094,23.438,2655.4,2655.3,0.75285]
[1750103435595,40.8,2655.8,2655.2,1.88224]
[1750103435799,40.8,2655.8,2655.0,3.19785]
[1750103435800,0.75281,2655.5,2655.3,2.08214]
[1750103436007,23.436,2655.4,2655.3,2.08214]
[1750103437308,24.18884,2655.4,2655.3,0.75284]
[1750103437610,23.436,2655.4,2655.3,0.75284]
[1750103442013,3.2078,2655.7,2655.6,0.75278]
[1750103442210,33.8478603,2655.7,2655.6,0.75278]
[1750103442401,1.88196,2655.6,2655.3,0.75284]
[1750103442605,0.75287,2655.4,2655.3,0.75284]
[1750103442811,25.1909303,2655.4,2655.3,0.75284]
[1750103443504,24.4380603,2655.4,2655.3,0.75284]
[1750103444509,30.6380603,2655.4,2655.3,0.75284]
[1750103447017,31.3909003,2655.4,2655.3,0.75284]
[1750103448421,31.3899003,2655.4,2655.3,0.75284]
[1750103449814,30.6370603,2655.4,2655.3,0.82021406]
[1750103450021,30.38184,2655.4,2655.3,0.82021406]
[1750103450318,31.39160047,2655.4,2655.3,0.82021406]
[1750103450521,30.63876047,2655.4,2655.3,0.82021406]
[1750103450720,31.39160047,2655.4,2655.3,0.82021406]
[1750103450926,30.63876047,2655.4,2655.3,0.82021406]
[1750103451220,31.39160047,2655.4,2655.3,0.82021406]
[1750103451519,1.00976047,2655.4,2655.3,0.82021406]
[1750103451717,24.43476047,2655.4,2655.3,0.82021406]
[1750103451915,1.00976047,2655.4,2655.3,0.82021406]
[1750103452219,23.425,2655.4,2655.3,0.82021406]
[1750103452418,3.2078,2655.7,2655.6,0.75278]
[1750103452621,4.21757535,2655.7,2655.6,0.75278]
[1750103452809,3.2078,2655.7,2655.6,0.75278]
[1750103453427,23.425,2655.8,2655.7,0.75275]
[1750103453624,24.43452307,2655.8,2655.7,0.75275]
[1750103454020,10.16148,2656.0,2655.9,0.7527]
[1750103454323,4.21729356,2656.0,2655.9,0.7527]
[1750103454523,26.6318,2656.0,2655.9,0.7527]
[1750103454726,26.6318,2656.0,2655.9,1.5728]
[1750103455118,3.2078,2656.0,2655.9,0.7527]
[1750103455318,27.64089314,2656.0,2655.9,0.7527]
[1750103455615,0.75272,2655.9,2655.8,0.7527]
[1750103455815,1.76181314,2655.9,2655.8,0.7527]
[1750103456825,1.00909314,2655.9,2655.3,1.94953406]
[1750103457024,0.75281,2655.6,2655.5,0.75278]
[1750103457521,23.421,2655.7,2655.6,0.75278]
[1750103457824,24.42975874,2655.7,2655.6,0.75278]
[1750103458017,0.75282,2655.6,2655.5,0.75279]
[1750103458217,1.76157874,2655.6,2655.5,0.75279]
[1750103458426,2.60907874,2655.6,2655.5,0.75279]
[1750103458621,2.60907874,2655.6,2655.3,1.94953406]
[1750103458622,0.75284,2655.5,2655.4,0.75282]
[1750103458829,1.76159874,2655.5,2655.4,0.75282]
[1750103460432,0.75284,2655.4,2655.3,0.82022406]
[1750103460628,32.57865257,2655.4,2655.3,0.82024406]
[1750103461329,25.18059874,2655.4,2655.3,0.82024406]
[1750103464636,1.00875874,2655.4,2655.3,0.82024406]
[1750103465027,24.42745784,2655.4,2655.3,0.82024406]
[1750103466829,25.18029784,2655.4,2655.3,0.82024406]
[1750103467025,25.18029784,2655.4,2655.3,0.06737406]
[1750103468438,25.18029784,2655.4,2655.3,0.82024406]
[1750103468641,25.18029784,2655.4,2655.3,0.06737406]
[1750103468834,29.42745784,2655.4,2654.8,0.75298]
[1750103469036,0.75302,2654.9,2654.8,0.75298]
[1750103469240,0.75305,2654.8,2654.7,0.75301]
[1750103469430,2.58113604,2654.8,2654.7,0.75301]
[1750103469636,3.43563604,2654.8,2654.7,0.75301]
[1750103470533,0.75306,2654.7,2654.6,0.75304]
[1750103470740,0.75308,2654.6,2654.5,0.75307]
[1750103470938,1.01108604,2654.6,2654.5,0.75307]
[1750103471438,1.67714919,2654.8,2654.7,0.75304]
[1750103471634,2.68721698,2654.8,2654.7,0.75304]
[1750103472241,23.41964919,2654.8,2654.7,0.75304]
[1750103472429,23.41964919,2654.8,2654.7,1.60404]
[1750103473639,23.41964919,2654.8,2654.7,0.75304]
[1750103474644,24.43005522,2654.8,2654.7,0.75304]
[1750103475341,23.41964919,2654.8,2654.7,0.75304]
[1750103476635,9.19e-06,2654.8,2654.7,13.15109383]
[1750103476944,9.19e-06,2654.8,2654.7,16.5994345]
[1750103477934,9.19e-06,2654.8,2654.7,12.19149655]
[1750103478237,9.19e-06,2654.8,2654.7,46.2034345]
[1750103478541,9.19e-06,2654.8,2654.7,16.5994345]
[1750103478842,9.19e-06,2654.8,2654.7,22.7914345]
[1750103479737,9.19e-06,2654.8,2654.7,46.2034345]
[1750103480245,9.19e-06,2654.8,2654.7,46.27080856]
[1750103481545,9.19e-06,2654.8,2654.7,38.87275473]
[1750103481746,9.19e-06,2654.8,2654.7,46.26780856]
[1750103482945,9.19e-06,2654.8,2654.7,49.25792444]
[1750103484341,9.19e-06,2654.8,2654.7,44.25792444]
[1750103484544,9.19e-06,2654.8,2654.7,49.25792444]
[1750103485348,9.19e-06,2654.8,2654.7,49.25392444]
[1750103486041,9.19e-06,2654.8,2654.7,49.25292444]
[1750103486343,9.19e-06,2654.8,2654.7,19.65692444]
[1750103486744,9.19e-06,2654.8,2654.7,46.26280856]
[1750103487848,9.19e-06,2654.8,2654.7,4.26875473]
[1750103489147,9.19e-06,2654.8,2654.7,0.82041406]
[1750103491949,0.75301919,2654.8,2654.7,0.06737406]
[1750103492260,0.75309,2654.6,2654.5,0.75307]
[1750103492451,1.76247274,2654.6,2654.5,0.75307]
[1750103492647,0.75309,2654.5,2654.4,0.75874919]
[1750103492848,2.94029,2654.5,2654.4,0.75874919]
[1750103493042,2.94029,2654.5,2654.4,0.00564919]
[1750103493349,2.94029,2654.5,2654.4,0.75876919]
[1750103493553,2.94029,2654.5,2654.4,0.00564919]
[1750103493759,0.75318,2654.2,2653.9,5.09094]
[1750103494050,0.8012,2654.1,2654.0,0.75324]
[1750103501863,0.8281,2654.5,2654.4,0.75312]
[1750103502064,3.2078,2655.3,2654.7,0.75304]
[1750103502265,0.8183,2655.1,2654.7,3.96084]
[1750103502461,0.8183,2655.1,2654.7,16.35889383]
[1750103502968,0.8183,2655.1,2654.7,17.70539383]
[1750103503362,0.8183,2655.1,2654.7,41.10739383]
[1750103503563,0.8183,2655.1,2654.7,17.70539383]
[1750103503758,0.8183,2655.1,2654.7,47.28839383]
[1750103505373,0.8183,2655.1,2654.7,42.28839383]
[1750103506873,0.8152,2655.2,2654.8,1.88252]
[1750103507076,1.3391,2655.9,2655.8,0.75272]
[1750103507272,2.1658,2655.9,2655.8,0.75272]
[1750103507470,0.75273,2655.8,2655.4,5.08988]
[1750103507673,1.3391,2655.7,2655.4,5.08988]
[1750103508077,1.3391,2655.7,2655.6,0.75278]
[1750103510279,2.2078,2655.7,2655.6,0.75278]
[1750103510977,9.60585383,2655.7,2655.4,3.27517406]
[1750103511175,0.75281,2655.6,2655.5,0.7528]
[1750103511475,2.04781,2655.6,2655.5,0.7528]
[1750103511677,0.75281,2655.5,2655.4,0.06737406]
[1750103511882,2.04781,2655.5,2655.4,0.82021406]
[1750103512777,1.295,2655.5,2655.4,0.82021406]
[1750103513076,2.04781,2655.5,2655.4,0.82021406]
[1750103513772,1.295,2655.5,2655.4,0.82021406]
[1750103513973,0.8687,2655.7,2655.6,0.75278]
[1750103514379,2.91375,2655.7,2655.6,0.75278]
[1750103514775,9.19e-06,2655.8,2655.7,0.75275]
[1750103514976,9.19e-06,2655.8,2655.7,1.56205]
[1750103515379,9.19e-06,2655.8,2655.7,6.93375]
[1750103515579,9.19e-06,2655.8,2655.7,0.75275]
[1750103521179,9.19e-06,2655.8,2655.7,2.11155]
[1750103523882,9.19e-06,2655.8,2655.7,0.75275]
[1750103524281,6.17000919,2655.8,2655.7,0.75275]
[1750103524485,11.17000919,2655.8,2655.7,0.75275]
[1750103524688,14.15440919,2655.8,2655.7,0.75275]
[1750103524889,14.90712919,2655.8,2655.7,0.75275]
[1750103525283,14.15440919,2655.8,2655.7,0.75275]
[1750103525585,14.90712919,2655.8,2655.7,0.75275]
[1750103525786,14.90712919,2655.8,2655.7,0.82012406]
[1750103526293,14.15440919,2655.8,2655.3,3.21344919]
[1750103526485,7.39805383,2655.7,2655.6,0.75278]
[1750103526686,8.73225383,2655.7,2655.6,0.75278]
[1750103527187,2.08697,2655.7,2655.6,0.75278]
[1750103527388,6.17,2655.7,2655.6,0.75278]
[1750103528391,6.92275,2655.7,2655.6,0.75278]
[1750103528590,8.25695,2655.7,2655.6,0.75278]
[1750103529786,0.75284,2655.5,2655.4,0.75284]
[1750103529984,0.7528,2655.6,2655.5,0.75278]
[1750103530184,3.01208936,2655.6,2655.5,0.75278]
[1750103532392,26.39108936,2655.6,2655.5,0.75278]
[1750103532686,25.3831,2655.6,2655.5,0.75278]
[1750103533988,0.75284,2655.5,2655.4,0.75282]
[1750103534382,2.02004,2655.5,2655.4,0.75282]
[1750103534989,0.75284,2655.5,2655.4,0.75282]
[1750103535894,24.13181,2655.6,2655.5,0.75281]
[1750103536994,25.38421,2655.6,2655.5,0.75281]
[1750103537182,0.75284,2655.5,2655.4,0.75282]
[1750103537496,5.92219503,2655.5,2655.4,0.75282]
[1750103537792,0.75284,2655.4,2655.3,0.75849919]
[1750103539197,0.75284,2655.4,2655.3,0.00564919]
[1750103539696,1.66320919,2655.8,2655.4,1.8821]
[1750103539997,0.75277,2655.7,2655.6,0.75275]
[1750103540590,31.96294919,2655.8,2655.7,0.75275]
[1750103540889,9.19e-06,2655.8,2655.7,0.75275]
[1750103541095,9.19e-06,2655.8,2655.7,2.04485]
[1750103541594,9.19e-06,2655.8,2655.7,5.25265]
[1750103542795,9.19e-06,2655.8,2655.7,21.1008178]
[1750103543593,9.19e-06,2655.8,2655.7,8.70099067]
[1750103546697,9.19e-06,2655.8,2655.7,17.65247713]
[1750103547603,9.19e-06,2655.8,2655.7,10.25265]
[1750103547788,9.19e-06,2655.8,2655.7,17.65247713]
[1750103548798,0.8226,2656.9,2656.8,0.75244]
[1750103548997,3.2078,2657.0,2656.9,0.75241]
[1750103549500,3.96018,2657.0,2656.9,0.75241]
[1750103550498,0.75238,2657.1,2656.7,4.09194919]
[1750103550700,0.75244,2656.8,2656.7,4.84438919]
[1750103550893,0.75244,2656.8,2656.7,3.96588919]
[1750103551295,0.75244,2656.8,2656.7,3.96591919]
[1750103551700,0.75243,2656.9,2656.8,0.75242]
[1750103552407,0.75244,2656.8,2656.7,3.96591919]
[1750103553096,0.75243,2656.9,2656.8,0.7524]
[1750103553297,3.96017,2657.1,2657.0,0.75238]
[1750103554504,0.75241,2657.0,2656.9,0.75238]
[1750103554697,3.2078,2657.1,2656.8,2.09773]
[1750103554698,0.75241,2656.9,2656.8,2.09773]
[1750103556397,0.83634919,2657.2,2656.8,1.3453]
[1750103556598,0.7524,2657.1,2657.0,0.75236]
[1750103557698,0.75241,2657.0,2656.9,0.7524]
[1750103558702,0.75244,2656.8,2656.7,0.82548325]
[1750103559702,0.75244,2656.8,2656.7,0.07302325]
[1750103560404,0.75244,2656.8,2656.7,0.82549325]
[1750103561109,0.75244,2656.8,2656.7,0.07302325]
[1750103561606,0.75244,2656.8,2656.7,0.82549325]
[1750103561801,1.61674,2656.8,2656.7,0.82549325]
[1750103562808,0.8643,2656.8,2656.7,0.82549325]
[1750103563008,0.7524,2657.0,2656.9,0.75238]
[1750103563307,3.96018,2657.1,2657.0,0.75238]
[1750103563708,7.84054919,2657.2,2657.1,0.75236]
[1750103564105,8.59287919,2657.2,2657.1,0.75236]
[1750103565809,0.7524,2657.1,2657.0,0.75236]
[1750103566205,1.68154919,2657.2,2657.1,0.75236]
[1750103566809,2.43387919,2657.2,2657.1,0.75236]
[1750103567709,1.68154919,2657.2,2657.1,0.75236]
[1750103568310,0.00564919,2657.2,2657.1,0.75236]
[1750103568610,0.00564919,2657.2,2657.1,2.10446]
[1750103569004,0.8934,2657.6,2657.5,0.75224]
[1750103570209,1.64561,2657.6,2657.5,0.75224]
[1750103571212,2.98871,2657.6,2657.5,0.75224]
[1750103571509,1.64561,2657.6,2657.5,0.75224]
[1750103572114,0.7523,2657.4,2657.3,0.75226]
[1750103572409,0.75227,2657.5,2657.4,0.75224]
[1750103572817,2.98216,2657.6,2657.5,0.75224]
[1750103573716,0.8934,2657.6,2657.5,0.75224]
[1750103574817,1.64561,2657.6,2657.5,0.75224]
[1750103575820,0.8934,2657.6,2657.5,0.75224]
[1750103576117,1.64561,2657.6,2657.5,0.75224]
[1750103576318,0.8934,2657.6,2657.5,0.75224]
[1750103576920,1.64561,2657.6,2657.5,0.75224]
[1750103577217,0.8934,2657.6,2657.5,0.75224]
[1750103579013,3.2078,2657.7,2657.6,0.75221]
[1750103579819,9.19e-06,2657.8,2657.7,0.75219]
[1750103580022,3.2078,2658.6,2658.5,0.75196]
[1750103580216,6.158,2658.7,2658.6,0.75193]
[1750103581317,0.8165,2658.8,2658.7,0.7519]
[1750103582418,0.75193,2658.7,2658.6,0.75192]
[1750103582634,0.75196,2658.5,2658.4,0.00564919]
[1750103582820,30.24296,2658.5,2658.4,0.00564919]
[1750103583021,45.26015675,2658.5,2658.4,0.00564919]
[1750103583213,30.24296,2658.5,2658.4,0.75763919]
[1750103583525,24.33620301,2658.5,2658.4,0.75763919]
[1750103583723,24.33620301,2658.5,2658.4,3.96543919]
[1750103584022,23.333,2658.5,2658.4,3.96543919]
[1750103584527,6.157,2658.6,2658.5,0.75196]
[1750103584725,30.49259512,2658.6,2658.5,0.75196]
[1750103585623,31.24452512,2658.6,2658.5,0.75196]
[1750103585924,30.49259512,2658.6,2658.5,0.75196]
[1750103586126,31.24452512,2658.6,2658.5,0.75196]
[1750103586421,0.75196,2658.5,2658.4,0.82499325]
[1750103586618,1.75455512,2658.5,2658.4,0.75761919]
[1750103586823,1.75455512,2658.5,2658.4,0.00564919]
[1750103587023,3.01615512,2658.5,2658.4,0.75763919]
[1750103587422,0.75214,2658.0,2657.3,3.2078]
[1750103587723,24.08114,2657.9,2657.8,0.75216]
[1750103587922,0.75219,2657.8,2657.7,0.75216]
[1750103588130,1.55799,2657.8,2657.7,0.75216]
[1750103589230,0.75221,2657.6,2657.5,0.75786919]
[1750103589422,24.08021,2657.6,2657.5,0.75786919]
[1750103589729,24.08021,2657.6,2657.5,0.00564919]
[1750103591424,25.08278599,2657.6,2657.5,0.00564919]
[1750103592428,65.88278599,2657.6,2657.5,0.00564919]
[1750103592829,70.88278599,2657.6,2657.5,0.00564919]
[1750103593030,0.75236,2657.1,2657.0,0.75237]
[1750103593232,24.07936,2657.1,2657.0,0.75237]
[1750103594033,23.327,2657.1,2657.0,0.75237]
[1750103594235,24.07936,2657.1,2657.0,0.75237]
[1750103594833,23.327,2657.1,2657.0,0.75237]
[1750103595036,23.327,2657.1,2657.0,3.96017]
[1750103595231,24.07936,2657.1,2657.0,3.96017]
[1750103595433,6.15264919,2657.3,2657.0,3.96017]
[1750103595434,0.75795919,2657.3,2657.2,0.75233]
[1750103595732,24.08595919,2657.3,2657.2,0.75233]
[1750103596340,24.08595919,2657.3,2657.0,0.75236]
[1750103596341,0.75239,2657.1,2657.0,0.75236]
[1750103597242,1.58555,2657.2,2657.1,0.75236]
[1750103597646,0.8332,2657.2,2657.1,0.75236]
[1750103597848,24.1622,2657.2,2657.1,0.75236]
[1750103599157,0.00564919,2657.3,2657.2,0.75233]
[1750103599755,0.00564919,2657.3,2657.2,1.50493]
[1750103600748,0.75794919,2657.3,2657.2,0.75233]
[1750103600951,0.75233,2657.2,2657.1,0.06737406]
[1750103601154,24.90583,2657.2,2657.1,0.06737406]
[1750103601460,27.26198325,2657.2,2657.1,0.06737406]
[1750103602360,0.75241,2656.9,2656.8,0.00564919]
[1750103602560,37.62823713,2656.9,2656.8,0.00564919]
[1750103604360,38.63138133,2656.9,2656.8,0.00564919]
[1750103607760,79.43138133,2656.9,2656.8,0.00564919]
[1750103607962,83.67897133,2656.9,2655.9,3.2078]
[1750103608167,4.2109442,2656.8,2656.1,1.88161]
[1750103608365,0.75254,2656.5,2656.4,0.75252]
[1750103608670,23.329,2656.5,2656.4,0.75252]
[1750103609168,23.329,2656.5,2656.4,2.06293]
[1750103609169,24.08253,2656.5,2656.4,2.06293]
[1750103609371,23.33,2656.5,2656.4,2.06293]
[1750103610166,23.329,2656.5,2656.4,2.06295]
[1750103610762,9.3568,2656.8,2656.7,0.75247]
[1750103610962,32.6858,2656.8,2656.7,0.75247]
[1750103611664,33.43824,2656.8,2656.7,0.75247]
[1750103611865,0.75248,2656.7,2656.6,0.75247]
[1750103612770,33.43826,2656.8,2656.7,0.75247]
[1750103615069,33.43826,2656.8,2656.7,0.81984406]
[1750103615476,34.44389594,2656.8,2656.7,0.81984406]
[1750103616274,1.00563594,2656.8,2656.7,0.81984406]
[1750103616473,0.00564919,2657.3,2657.2,0.75233]
[1750103617070,9.3488,2657.8,2657.7,0.75219]
[1750103617287,10.35497447,2657.8,2657.7,0.75219]
[1750103617578,6.141,2658.1,2658.0,0.7521]
[1750103617765,31.2267626,2658.1,2658.0,0.7521]
[1750103617969,1.0066926,2658.1,2658.0,0.7521]
[1750103618169,6.141,2658.1,2658.0,0.7521]
[1750103618471,29.466,2658.1,2658.0,2.0165]
[1750103620376,0.75213,2657.9,2657.8,0.00564919]
[1750103620571,0.75223,2657.6,2657.5,0.75222]
[1750103620771,30.21723,2657.6,2657.5,0.75222]
[1750103620973,0.75218,2657.8,2657.7,0.75216]
[1750103621173,31.21886739,2657.8,2657.7,0.75216]
[1750103621870,0.75221,2657.6,2657.5,0.00564919]
[1750103622070,24.07321,2657.6,2657.5,0.75788919]
[1750103622668,25.07882202,2657.6,2657.5,0.00564919]
[1750103623469,25.07882202,2657.6,2657.5,0.75788919]
[1750103623676,10.09995,2657.9,2657.8,0.75216]
[1750103623978,33.41995,2657.9,2657.8,0.75216]
[1750103624366,32.6678,2657.9,2657.8,0.75216]
[1750103624580,33.41993,2657.9,2657.8,0.75216]
[1750103624878,33.41893,2657.9,2657.8,0.75216]
[1750103625578,30.21113,2657.9,2657.8,0.75216]
[1750103626877,0.75221,2657.6,2657.5,0.00564919]
[1750103627078,1.88088,2657.2,2656.8,1.263]
[1750103627282,0.75244,2656.9,2656.8,0.75242]
[1750103627481,24.06944,2656.9,2656.8,0.75242]
[1750103627679,0.75247,2656.7,2656.6,0.75248]
[1750103627881,24.06947,2656.7,2656.6,0.75248]
[1750103629688,0.75253,2656.6,2656.5,0.75251]
[1750103630782,30.20949,2656.7,2656.6,0.7525]
[1750103631081,30.21049,2656.7,2656.6,0.7525]
[1750103631277,0.75253,2656.6,2656.5,0.75251]
[1750103631877,30.21049,2656.7,2656.6,0.7525]
[1750103632286,30.21049,2656.7,2656.6,0.81987406]
[1750103634082,30.21049,2656.7,2656.6,0.06737406]
[1750103635180,4.7911,2656.8,2656.7,0.75247]
[1750103635386,24.07044,2656.8,2656.7,0.75247]
[1750103635582,23.318,2656.8,2656.7,0.75247]
[1750103635886,0.00564919,2656.9,2656.8,0.75244]
[1750103636075,0.00564919,2656.9,2656.8,5.46454]
[1750103636388,6.141,2657.4,2657.3,0.7523]
[1750103636582,3.2078,2657.8,2657.7,0.75219]
[1750103637081,26.5268,2657.8,2657.7,0.75219]
[1750103637384,3.95996,2657.8,2657.7,0.75219]
[1750103637688,27.27896,2657.8,2657.7,0.75219]
[1750103638075,0.75221,2657.6,2657.5,1.52263]
[1750103638283,0.7522,2657.7,2657.6,0.75219]
[1750103638485,24.0712,2657.7,2657.6,0.75219]
[1750103640391,0.75227,2657.4,2657.3,1.52269]
[1750103640582,0.7523,2657.3,2657.2,3.2078]
[1750103640782,24.0683,2657.3,2657.2,3.2078]
[1750103642287,23.316,2657.3,2657.0,2.033]
[1750103642492,23.316,2657.3,2656.9,3.2078]
[1750103642692,0.75238,2657.0,2656.9,3.96021]
[1750103642991,23.315,2657.0,2656.7,2.0064]
[1750103643187,0.75247,2656.7,2656.6,0.81986406]
[1750103643388,24.06747,2656.7,2656.6,0.81986406]
[1750103643889,23.315,2656.7,2656.6,0.81986406]
[1750103644294,24.06747,2656.7,2656.6,0.81986406]
[1750103644492,23.315,2656.7,2656.6,0.75249]
[1750103646493,24.06747,2656.7,2656.6,0.75249]
[1750103648192,23.315,2656.7,2656.6,0.75249]
[1750103648398,24.06747,2656.7,2656.6,0.75249]
[1750103650294,3.2078,2657.8,2656.6,18.53482713]
[1750103650496,3.2078,2657.8,2657.1,10.60762713]
[1750103650701,0.75226,2657.5,2657.4,0.75225]
[1750103651089,3.2078,2657.8,2657.2,1.5247]
[1750103651293,0.75236,2657.2,2657.1,0.75235]
[1750103651605,30.20236,2657.2,2657.1,0.75235]
[1750103652394,30.94346,2657.2,2657.1,0.75235]
[1750103652899,0.7411,2657.2,2657.1,0.75235]
[1750103653100,6.135,2657.3,2657.2,0.75233]
[1750103653297,3.2078,2657.4,2657.3,0.7523]
[1750103653599,26.5218,2657.4,2657.3,0.7523]
[1750103654495,27.53064297,2657.4,2657.3,0.7523]
[1750103655097,28.28291297,2657.4,2657.3,0.7523]
[1750103655298,27.53064297,2657.4,2657.3,0.7523]
[1750103656599,4.21664297,2657.4,2657.3,0.7523]
[1750103656803,24.0541,2657.5,2657.4,0.75227]
[1750103657701,24.80634,2657.5,2657.4,0.75227]
[1750103657903,24.0541,2657.5,2657.4,0.75227]
[1750103658598,0.8093,2657.6,2657.5,0.75224]
[1750103658798,25.07175073,2657.6,2657.5,0.75224]
[1750103659204,25.07175073,2657.6,2657.4,0.75225]
[1750103659205,0.75227,2657.5,2657.4,0.75225]
[1750103659706,1.76086107,2657.5,2657.4,0.75225]
[1750103660405,1.00859107,2657.5,2657.4,0.75225]
[1750103660708,1.00859107,2657.5,2657.4,0.81962406]
[1750103661006,24.06324,2657.6,2657.5,0.75224]
[1750103661205,25.07188756,2657.6,2657.5,0.75224]
[1750103661502,1.00864756,2657.6,2657.5,0.75224]
[1750103661898,29.445,2657.7,2657.6,0.75221]
[1750103662098,30.45328872,2657.7,2657.6,0.75221]
[1750103662406,31.20547872,2657.7,2657.6,0.75221]
[1750103662594,31.20447872,2657.7,2657.6,0.75221]
[1750103663401,25.06947872,2657.7,2657.6,0.75221]
[1750103664702,0.75224,2657.6,2657.5,0.75221]
[1750103664908,1.76052872,2657.6,2657.5,0.75221]
[1750103665102,0.75224,2657.5,2657.4,0.06737406]
[1750103665307,0.7525,2656.6,2656.5,3.9603]
[1750103665506,0.7525,2656.6,2656.5,3.96031]
[1750103666008,0.7525,2656.6,2656.5,3.96033]
[1750103666508,0.7525,2656.6,2656.5,0.75253]
[1750103666708,24.06048,2656.7,2656.6,0.7525]
[1750103667009,25.06925024,2656.7,2656.6,0.7525]
[1750103667306,0.75252,2656.6,2656.5,0.75251]
[1750103667708,24.06049,2656.7,2656.6,0.7525]
[1750103667907,25.06919338,2656.7,2656.6,0.7525]
[1750103668103,0.75253,2656.6,2656.5,0.75251]
[1750103669008,0.75253,2656.5,2656.4,0.00564919]
[1750103669205,0.75253,2656.5,2656.4,0.75819919]
[1750103669404,0.75253,2656.5,2656.4,0.00564919]
[1750103669609,1.76096586,2656.5,2656.4,0.00564919]
[1750103669909,0.75272,2655.8,2655.7,3.96053]
[1750103670297,2.25014885,2656.7,2655.7,15.60762713]
[1750103670605,3.2078,2656.9,2656.5,3.2078]
[1750103670910,3.2078,2656.9,2656.8,0.75244]
[1750103672109,26.5148,2656.9,2656.8,0.75244]
[1750103673610,0.00564919,2657.0,2656.9,0.75241]
[1750103673910,23.31364919,2657.0,2656.9,2.03991]
[1750103674308,23.31264919,2657.0,2656.9,2.03991]
[1750103675109,23.31264919,2657.0,2656.9,0.75241]
[1750103675110,24.06502919,2657.0,2656.9,0.75241]
[1750103675505,23.31264919,2657.0,2656.9,0.75241]
[1750103676109,24.06502919,2657.0,2656.9,0.75241]
[1750103676412,23.31364919,2657.0,2656.9,0.75241]
[1750103677409,0.00564919,2657.0,2656.9,2.05201]
[1750103677606,6.88229,2657.4,2657.3,0.75227]
[1750103677912,31.19694803,2657.4,2657.3,0.75227]
[1750103679410,31.19694803,2657.4,2656.8,5.93134406]
[1750103679411,37.84448516,2657.4,2656.8,4.05027406]
[1750103679613,0.75241,2656.9,2656.8,1.59489406]
[1750103679805,24.05941,2656.9,2656.8,1.59489406]
[1750103680201,3.2078,2657.5,2657.4,0.75227]
[1750103680408,1.00777642,2657.5,2657.4,0.75227]
[1750103680613,0.79434919,2657.6,2657.5,0.75224]
[1750103680810,0.00564919,2657.6,2657.5,0.75224]
[1750103681515,0.00564919,2657.6,2657.5,2.10704]
[1750103683610,0.75785919,2657.6,2657.5,2.10704]
[1750103683811,0.75785919,2657.6,2657.5,0.75224]
[1750103684615,0.75788919,2657.6,2657.5,0.75224]
[1750103686314,0.75224,2657.5,2657.4,0.75224]
[1750103687014,0.75241,2656.9,2656.8,3.2078]
[1750103687213,23.304,2656.9,2656.6,0.06737406]
[1750103687409,0.75247,2656.7,2656.6,0.81986406]
[1750103688120,0.75247,2656.7,2656.6,0.75249]
[1750103689326,28.39285,2656.9,2656.6,0.06737406]
[1750103689327,3.2078,2656.9,2656.6,0.06737406]
[1750103689621,3.2078,2656.9,2656.8,0.75244]
[1750103690315,0.75247,2656.7,2656.6,0.06737406]
[1750103690619,37.60429713,2656.7,2656.6,0.06737406]
[1750103690815,38.61044526,2656.7,2656.6,0.06737406]
[1750103691018,39.33614526,2656.7,2656.6,0.06737406]
[1750103692016,31.93631813,2656.7,2656.6,0.06737406]
[1750103693323,31.9373088,2656.7,2656.6,0.06737406]
[1750103694121,8.6163088,2656.7,2656.6,0.06737406]
[1750103694320,31.9243088,2656.7,2656.6,0.06737406]
[1750103694521,31.9243088,2656.7,2656.6,0.81987406]
[1750103694915,31.9243088,2656.7,2656.6,0.06737406]